bitfinex/quotes_SOLUSD_20260223
["timestamp","ask_amount","ask_price","bid_price","bid_amount"]
[1771810539168,2.48719608,78.809,78.771,2.44739341]
[1771810539555,2.48719608,78.799,78.765,12.69587962]
[1771810540262,2.48719608,78.799,78.77,20.61125119]
[1771810540463,12.68906709,78.808,78.77,23.0586446]
[1771810540662,15.17626317,78.808,78.77,23.0586446]
[1771810540864,2.48719608,78.807,78.771,2.44739341]
[1771810541277,2.48719608,78.807,78.78,20.61125119]
[1771810541776,2.48719608,78.838,78.8,23.0586446]
[1771810541980,50.70112554,78.894,78.781,12.69341592]
[1771810541981,12.68311243,78.845,78.82,20.61125119]
[1771810542155,12.68311243,78.845,78.801,2.44739341]
[1771810542156,12.68311243,78.845,78.81,23.0586446]
[1771810542352,2.48719608,78.859,78.808,2.44739341]
[1771810542563,12.6794137,78.868,78.808,2.44739341]
[1771810542564,2.48719608,78.849,78.82,20.61125119]
[1771810542871,2.48719608,78.849,78.81,20.61125119]
[1771810543077,2.48719608,78.839,78.81,20.61125119]
[1771810543374,2.48719608,78.839,78.8,20.61125119]
[1771810543575,2.48719608,78.839,78.81,20.61125119]
[1771810543760,12.68158103,78.855,78.82,23.0586446]
[1771810543952,15.16581691,78.873,78.85,20.61125119]
[1771810544276,2.48719608,78.885,78.85,20.61125119]
[1771810545152,20.61125119,78.89,78.851,2.44739341]
[1771810545364,2.48719608,78.899,78.861,2.44739341]
[1771810545569,2.48719608,78.889,78.85,20.61125119]
[1771810545769,12.67619916,78.888,78.852,2.44739341]
[1771810545973,2.48719608,78.908,78.87,20.61125119]
[1771810547772,12.67314686,78.907,78.871,12.67893141]
[1771810548560,12.67242207,78.912,78.88,20.61125119]
[1771810549362,20.61125119,78.89,78.866,12.67968741]
[1771810549566,20.61125119,78.88,78.855,12.68150402]
[1771810549763,2.48719608,78.889,78.854,15.12903616]
[1771810550074,2.48719608,78.887,78.854,12.68164275]
[1771810550258,2.48719608,78.887,78.85,20.61125119]
[1771810550464,2.48719608,78.887,78.843,2.44739341]
[1771810550465,2.48719608,78.879,78.844,12.68327329]
[1771810551579,2.48719608,78.869,78.83,20.61125119]
[1771810551776,44.36669708,78.888,78.807,2.44739341]
[1771810551777,20.61125119,78.84,78.807,2.44739341]
[1771810551979,2.48719608,78.839,78.802,2.44739341]
[1771810552182,2.48719608,78.839,78.81,20.61125119]
[1771810552483,2.48719608,78.853,78.811,2.44739341]
[1771810552683,2.48719608,78.853,78.82,20.61125119]
[1771810552983,2.48719608,78.839,78.801,15.13758769]
[1771810553987,2.48719608,78.837,78.801,12.69019428]
[1771810554462,2.48719608,78.829,78.79,23.0586446]
[1771810554879,20.61125119,78.82,78.79,2.44739341]
[1771810555081,20.61125119,78.82,78.791,12.6918049]
[1771810555281,2.48719608,78.829,78.791,12.6918049]
[1771810555587,2.48719608,78.829,78.79,23.09250469]
[1771810555880,15.17615227,78.809,78.773,15.14209844]
[1771810556087,5.36086188,78.846,78.773,15.14209844]
[1771810556088,23.13230736,78.82,78.781,2.44739341]
[1771810556296,2.48719608,78.82,78.79,20.64511128]
[1771810556665,15.1743479,78.82,78.79,20.64511128]
[1771810556987,2.48719608,78.82,78.79,20.64511128]
[1771810557286,2.48719608,78.819,78.781,2.44739341]
[1771810557965,2.48719608,78.819,78.782,12.6932548]
[1771810558166,15.17465325,78.818,78.782,12.6932548]
[1771810558368,2.48719608,78.817,78.782,12.6932548]
[1771810558581,2.48719608,78.809,78.77,23.09250469]
[1771810558892,20.64511128,78.81,78.772,2.44739341]
[1771810559775,23.13230736,78.82,78.79,20.64511128]
[1771810560076,12.68729621,78.819,78.79,20.64511128]
[1771810560281,2.48719608,78.818,78.781,2.44739341]
[1771810560486,2.48719608,78.818,78.78,33.33868152]
[1771810560690,12.68729621,78.819,78.772,12.69472192]
[1771810560691,2.48719608,78.809,78.772,12.69472192]
[1771810560981,20.64511128,78.8,78.773,15.14209844]
[1771810561178,15.17449229,78.819,78.781,2.44739341]
[1771810561383,2.48719608,78.818,78.781,2.44739341]
[1771810562370,20.64511128,78.83,78.791,2.44739341]
[1771810562665,2.48719608,78.831,78.8,20.64511128]
[1771810563482,12.68552581,78.83,78.8,20.64511128]
[1771810563692,2.48719608,78.829,78.79,20.64511128]
[1771810563986,2.48719608,78.829,78.782,44.42639181]
[1771810563987,2.48719608,78.819,78.782,12.6932548]
[1771810564188,20.64511128,78.81,78.778,2.44739341]
[1771810564577,2.48719608,78.808,78.77,23.09250469]
[1771810564788,23.13230736,78.78,78.747,2.44739341]
[1771810564991,23.13230736,78.78,78.748,12.6987352]
[1771810564992,2.48719608,78.779,78.748,12.6987352]
[1771810565700,2.48719608,78.779,78.64,53.01961036]
[1771810565701,2.48719608,78.759,78.721,12.70309066]
[1771810565878,5.36086188,78.796,78.721,12.70309066]
[1771810565879,2.48719608,78.749,78.721,12.70309066]
[1771810566290,20.64511128,78.74,78.714,12.70413027]
[1771810566593,2.48719608,78.739,78.71,0.2]
[1771810566778,2.48719608,78.802,78.71,23.29250469]
[1771810566976,2.48719608,78.754,78.721,2.44739341]
[1771810567184,2.48719608,78.765,78.73,20.64511128]
[1771810567698,2.48719608,78.758,78.73,20.64511128]
[1771810568199,2.48719608,78.758,78.721,2.44739341]
[1771810568683,15.18444864,78.758,78.73,20.64511128]
[1771810569001,2.66148228,78.769,78.732,2.59574551]
[1771810569208,2.66148228,78.769,78.74,20.64511128]
[1771810569420,2.66148228,78.777,78.74,20.64511128]
[1771810569706,12.69373817,78.779,78.75,23.24085679]
[1771810569883,12.69228816,78.788,78.751,2.59574551]
[1771810570280,2.66148228,78.8,78.77,20.64511128]
[1771810570485,2.66148228,78.808,78.771,2.59574551]
[1771810570885,12.68922811,78.807,78.771,2.59574551]
[1771810571305,15.35071039,78.807,78.771,2.59574551]
[1771810571607,15.35071039,78.807,78.77,33.34018501]
[1771810571608,2.66148228,78.806,78.77,20.64511128]
[1771810571984,2.66148228,78.806,78.732,2.59574551]
[1771810571985,2.66148228,78.779,78.732,2.59574551]
[1771810572297,2.66148228,78.759,78.721,2.59574551]
[1771810572480,2.66148228,78.759,78.73,20.64511128]
[1771810572881,12.69712283,78.758,78.722,12.70292929]
[1771810573102,12.69712283,78.758,78.711,31.76176138]
[1771810573103,2.66148228,78.757,78.711,2.59574551]
[1771810573282,2.66148228,78.757,78.712,2.59574551]
[1771810573482,2.66148228,78.757,78.72,20.64511128]
[1771810574900,2.66148228,78.762,78.714,2.59574551]
[1771810575102,20.64511128,78.76,78.721,2.59574551]
[1771810575414,20.64511128,78.77,78.73,23.24085679]
[1771810575580,2.66148228,78.774,78.74,20.64511128]
[1771810575786,2.66148228,78.774,78.731,2.59574551]
[1771810575994,2.66148228,78.774,78.74,20.64511128]
[1771810576193,2.66148228,78.774,78.75,20.64511128]
[1771810576398,2.66148228,78.802,78.761,2.59574551]
[1771810576704,2.83407367,78.799,78.76,20.64511128]
[1771810576884,12.69067742,78.798,78.761,12.69663919]
[1771810577087,2.83407367,78.799,78.77,20.64511128]
[1771810577295,12.68994406,78.803,78.77,20.64511128]
[1771810577498,12.68898949,78.809,78.77,20.64511128]
[1771810577701,12.68898949,78.809,78.771,2.66378788]
[1771810577904,20.64511128,78.8,78.761,12.69663919]
[1771810578209,20.64511128,78.8,78.76,20.64511128]
[1771810578210,2.83407367,78.799,78.76,20.64511128]
[1771810578604,2.83407367,78.799,78.76,23.30889916]
[1771810579108,2.83407367,78.799,78.761,2.66378788]
[1771810579489,2.83407367,78.799,78.77,20.64511128]
[1771810579923,15.52382054,78.804,78.77,20.64511128]
[1771810580208,2.83407367,78.799,78.761,2.66378788]
[1771810580590,2.83407367,78.812,78.78,20.64511128]
[1771810580796,2.83407367,78.829,78.791,2.66378788]
[1771810580995,12.68584766,78.828,78.792,12.69164382]
[1771810581597,2.83407367,78.829,78.8,20.64511128]
[1771810581996,2.83407367,78.827,78.792,12.69164382]
[1771810582398,12.68584766,78.828,78.78,20.64511128]
[1771810582399,2.83407367,78.819,78.78,20.64511128]
[1771810582597,12.68584766,78.828,78.79,20.64511128]
[1771810582798,2.83407367,78.827,78.79,20.64511128]
[1771810583406,15.52010946,78.827,78.791,2.66378788]
[1771810583718,2.83407367,78.826,78.791,2.66378788]
[1771810583918,2.83407367,78.819,78.78,23.30889916]
[1771810584211,2.83407367,78.819,78.773,3.69383402]
[1771810584212,20.64511128,78.81,78.77,65.0782711]
[1771810584420,5.36086188,78.846,78.77,65.0782711]
[1771810584421,2.83407367,78.821,78.79,20.64511128]
[1771810584623,20.64511128,78.83,78.791,2.66378788]
[1771810584919,15.5197604,78.829,78.791,2.66378788]
[1771810585121,2.83407367,78.819,78.78,23.30889916]
[1771810585335,2.83407367,78.809,78.77,36.00408768]
[1771810585616,2.83407367,78.809,78.78,20.64511128]
[1771810586126,15.52314076,78.808,78.771,2.66378788]
[1771810586296,2.83407367,78.807,78.771,2.66378788]
[1771810586716,2.83407367,78.807,78.725,5.36086188]
[1771810586717,2.83407367,78.789,78.75,15.36220057]
[1771810586910,2.83407367,78.779,78.75,12.69841269]
[1771810587113,2.83407367,78.779,78.724,63.51238782]
[1771810587114,2.83407367,78.759,78.72,20.64511128]
[1771810587501,20.64511128,78.77,78.731,2.66378788]
[1771810587717,2.83407367,78.789,78.75,20.64511128]
[1771810587919,2.83407367,78.789,78.751,2.66378788]
[1771810588210,2.83407367,78.789,78.75,20.64511128]
[1771810588211,2.83407367,78.812,78.78,20.64511128]
[1771810588434,20.64511128,78.82,78.78,23.30889916]
[1771810588931,2.83407367,78.809,78.77,20.64511128]
[1771810589112,2.83407367,78.809,78.771,2.66378788]
[1771810589534,12.68906709,78.808,78.772,15.35865407]
[1771810589718,12.68906709,78.808,78.773,2.66378788]
[1771810590041,2.83407367,78.809,78.78,20.64511128]
[1771810590520,12.68906709,78.808,78.773,2.66378788]
[1771810591922,2.83407367,78.789,78.722,2.66378788]
[1771810592157,20.64511128,78.8,78.761,2.66378788]
[1771810592317,2.83407367,78.803,78.723,5.36086188]
[1771810592318,2.83407367,78.803,78.77,23.30889916]
[1771810592518,20.64511128,78.81,78.771,2.66378788]
[1771810592735,2.83407367,78.809,78.771,2.66378788]
[1771810593630,2.83407367,78.809,78.77,20.64511128]
[1771810593829,2.83407367,78.799,78.76,23.30889916]
[1771810594036,2.83407367,78.789,78.761,12.69663919]
[1771810594235,2.83407367,78.789,78.752,2.66378788]
[1771810594713,2.83407367,78.789,78.738,63.50107992]
[1771810594714,2.83407367,78.769,78.73,20.64511128]
[1771810594913,23.47918495,78.76,78.721,2.66378788]
[1771810595111,48.11120501,78.798,78.741,2.66378788]
[1771810595112,20.64511128,78.78,78.741,2.66378788]
[1771810595535,2.83407367,78.779,78.741,2.66378788]
[1771810596411,2.83407367,78.769,78.727,12.70207369]
[1771810596617,2.83407367,78.759,78.722,2.66378788]
[1771810596815,2.83407367,78.739,78.7,20.64511128]
[1771810597136,2.83407367,78.729,78.692,12.70766534]
[1771810597518,2.83407367,78.739,78.7,20.64511128]
[1771810597922,2.83407367,78.729,78.692,12.70766534]
[1771810598121,2.83407367,78.729,78.686,12.7086009]
[1771810598344,2.79149402,78.727,78.686,12.7086009]
[1771810598816,2.79149402,78.727,78.68,20.64511128]
[1771810598817,2.79149402,78.719,78.681,2.98961776]
[1771810599648,2.79149402,78.719,78.69,20.64511128]
[1771810599839,2.79149402,78.719,78.671,12.71116421]
[1771810600217,2.79149402,78.744,78.69,20.64511128]
[1771810600421,50.76483148,78.795,78.69,20.64511128]
[1771810600422,2.79149402,78.729,78.692,12.70777207]
[1771810601728,2.79149402,78.739,78.7,20.64511128]
[1771810601948,2.79149402,78.739,78.692,12.70777207]
[1771810602241,2.79149402,78.729,78.692,12.70777207]
[1771810602441,2.79149402,78.728,78.692,12.70777207]
[1771810602940,2.79149402,78.719,78.673,2.98961776]
[1771810603240,2.79149402,78.719,78.68,20.64511128]
[1771810605048,2.79149402,78.719,78.681,47.47303814]
[1771810606032,2.79149402,78.719,78.682,2.98961776]
[1771810606222,2.79149402,78.709,78.67,20.64511128]
[1771810607023,2.79149402,78.708,78.671,12.71116421]
[1771810607428,2.79149402,78.699,78.661,12.71278015]
[1771810608347,44.46760958,78.709,78.605,5.36086188]
[1771810608348,2.79149402,78.669,78.62,20.64511128]
[1771810608545,5.36086188,78.705,78.57,50.9095501]
[1771810608546,2.79149402,78.649,78.604,31.80483209]
[1771810608752,2.79149402,78.649,78.61,20.64511128]
[1771810609428,2.79149402,78.649,78.62,20.64511128]
[1771810610050,2.79149402,78.647,78.612,2.98961776]
[1771810610254,2.79149402,78.647,78.611,44.52303112]
[1771810610632,20.64511128,78.64,78.611,12.72086603]
[1771810610826,2.79149402,78.639,78.602,12.72232258]
[1771810611744,2.79149402,78.637,78.602,12.72232258]
[1771810612255,2.79149402,78.637,78.603,2.98961776]
[1771810613832,20.64511128,78.65,78.61,20.64511128]
[1771810614037,12.71411323,78.653,78.611,2.98961776]
[1771810614247,2.79149402,78.649,78.604,44.52699608]
[1771810614560,2.79149402,78.639,78.604,12.72199888]
[1771810615047,44.49929624,78.653,78.6,0.2]
[1771810615048,2.79149402,78.629,78.6,0.2]
[1771810615430,3.69383402,78.65,78.6,0.2]
[1771810615431,2.79149402,78.648,78.61,23.74197962]
[1771810615640,2.79149402,78.648,78.611,2.98961776]
[1771810616051,2.79149402,78.648,78.612,12.72070421]
[1771810616657,2.79149402,78.662,78.64,20.75236186]
[1771810616850,2.79149402,78.679,78.64,20.75236186]
[1771810617153,2.79149402,78.649,78.607,12.72143395]
[1771810617354,2.79149402,78.649,78.611,2.98961776]
[1771810618549,2.79149402,78.649,78.612,12.72070421]
[1771810618744,2.79149402,78.647,78.612,12.72070421]
[1771810618952,2.79149402,78.647,78.611,2.98961776]
[1771810619348,2.79149402,78.647,78.604,12.72199888]
[1771810619547,2.79149402,78.639,78.604,12.72199888]
[1771810620254,2.79149402,78.639,78.6,20.95236186]
[1771810620563,2.79149402,78.627,78.6,0.2]
[1771810620757,2.79149402,78.647,78.61,20.75236186]
[1771810620946,2.79149402,78.647,78.611,2.98961776]
[1771810621357,2.79149402,78.658,78.621,2.98961776]
[1771810621748,12.71315612,78.659,78.601,44.52869555]
[1771810621749,2.79149402,78.649,78.61,20.75236186]
[1771810622647,2.79149402,78.647,78.611,12.72086603]
[1771810623566,2.79149402,78.645,78.611,12.72086603]
[1771810623862,2.79149402,78.619,78.6,0.2]
[1771810624049,2.79149402,78.609,78.58,0.2]
[1771810624256,2.79149402,78.609,78.58,12.9257645]
[1771810624455,23.54385588,78.63,78.591,2.98961776]
[1771810624655,2.79149402,78.63,78.591,2.98961776]
[1771810625057,20.75236186,78.63,78.591,2.98961776]
[1771810625372,2.79149402,78.629,78.6,20.75236186]
[1771810625560,5.36086188,78.666,78.58,44.74047562]
[1771810625561,2.79149402,78.659,78.623,2.98961776]
[1771810625756,2.79149402,78.659,78.63,23.74197962]
[1771810626152,50.81700943,78.714,78.622,44.51680191]
[1771810626153,2.79149402,78.679,78.641,2.98961776]
[1771810627375,2.79149402,78.679,78.622,44.51680191]
[1771810627376,2.79149402,78.706,78.66,20.75236186]
[1771810627581,2.79149402,78.709,78.67,20.75236186]
[1771810627874,2.79149402,78.707,78.671,12.71116421]
[1771810628957,3.13563569,78.717,78.672,3.19394174]
[1771810629359,20.75236186,78.72,78.681,3.19394174]
[1771810629571,20.75236186,78.72,78.671,44.48907474]
[1771810629572,3.13563569,78.749,78.711,3.19394174]
[1771810629775,0.2,78.74,78.712,15.89848488]
[1771810630073,3.13563569,78.729,78.69,12.70808118]
[1771810630283,3.13563569,78.729,78.668,3.69383402]
[1771810630284,20.75236186,78.71,78.674,3.19394174]
[1771810630588,20.75236186,78.71,78.622,147.59213366]
[1771810630589,3.13563569,78.689,78.648,3.19394174]
[1771810630759,3.13563569,78.689,78.651,3.19394174]
[1771810631390,20.75236186,78.7,78.661,3.19394174]
[1771810631885,15.84066306,78.709,78.673,3.19394174]
[1771810632257,3.13563569,78.719,78.679,3.19394174]
[1771810632957,3.13563569,78.719,78.681,3.19394174]
[1771810633494,31.75259958,78.734,78.672,12.71100264]
[1771810633495,3.13563569,78.709,78.672,12.71100264]
[1771810633671,3.13563569,78.709,78.672,15.90494438]
[1771810633871,3.13563569,78.709,78.673,3.19394174]
[1771810634270,3.13563569,78.719,78.673,3.19394174]
[1771810634587,20.75236186,78.71,78.673,3.19394174]
[1771810634987,3.13563569,78.711,78.68,20.75236186]
[1771810635375,3.13563569,78.719,78.681,3.19394174]
[1771810635900,3.13563569,78.719,78.661,44.49473054]
[1771810635901,23.88799755,78.73,78.691,3.19394174]
[1771810636075,12.70184581,78.729,78.692,12.70777207]
[1771810636270,12.70076054,78.736,78.701,2.9713653]
[1771810636475,12.70018669,78.739,78.701,2.9713653]
[1771810637214,24.1887822,78.74,78.701,2.9713653]
[1771810637372,36.88888667,78.74,78.701,2.9713653]
[1771810637774,3.23642034,78.739,78.701,2.9713653]
[1771810637979,3.23642034,78.739,78.662,50.85015075]
[1771810637980,3.23642034,78.719,78.681,2.9713653]
[1771810638284,3.23642034,78.719,78.683,2.9713653]
[1771810638592,3.23642034,78.718,78.683,2.9713653]
[1771810638979,23.9887822,78.7,78.677,12.71010406]
[1771810639178,3.23642034,78.7,78.677,12.71010406]
[1771810639379,20.75236186,78.71,78.677,12.71010406]
[1771810639587,3.23642034,78.709,78.673,2.9713653]
[1771810640691,3.23642034,78.709,78.674,12.71067951]
[1771810640898,3.23642034,78.717,78.675,2.9713653]
[1771810641281,12.70357478,78.718,78.675,2.9713653]
[1771810641481,3.23642034,78.717,78.675,2.9713653]
[1771810641787,3.23642034,78.709,78.675,2.9713653]
[1771810642679,3.23642034,78.707,78.669,12.71133268]
[1771810642873,3.23642034,78.707,78.664,31.78060111]
[1771810642874,20.75236186,78.69,78.664,12.71220759]
[1771810643183,12.70518879,78.708,78.664,12.71220759]
[1771810643184,3.23642034,78.691,78.664,12.71220759]
[1771810644094,3.23642034,78.691,78.656,2.9713653]
[1771810644095,20.75236186,78.69,78.656,2.9713653]
[1771810644301,3.23642034,78.679,78.63,2.9713653]
[1771810644478,3.23642034,78.669,78.631,2.9713653]
[1771810644676,20.75236186,78.68,78.641,2.9713653]
[1771810644986,3.23642034,78.693,78.651,2.9713653]
[1771810645179,20.75236186,78.69,78.651,2.9713653]
[1771810645384,3.23642034,78.689,78.651,2.9713653]
[1771810645574,3.23642034,78.689,78.66,20.75236186]
[1771810646393,12.70664176,78.699,78.661,2.9713653]
[1771810646580,3.23642034,78.698,78.661,2.9713653]
[1771810646779,3.23642034,78.689,78.651,2.9713653]
[1771810647500,62.62854283,78.73,78.647,12.71504316]
[1771810647501,20.75236186,78.7,78.661,2.9713653]
[1771810647709,23.9887822,78.7,78.661,2.9713653]
[1771810647884,3.23642034,78.699,78.661,2.9713653]
[1771810648085,20.75236186,78.67,78.64,15.68739085]
[1771810648291,3.23642034,78.679,78.641,2.9713653]
[1771810648594,3.23642034,78.669,78.631,2.9713653]
[1771810649291,12.70971021,78.68,78.641,2.9713653]
[1771810649483,33.46207207,78.68,78.641,2.9713653]
[1771810649691,33.46207207,78.68,78.631,44.51170657]
[1771810649692,20.75236186,78.66,78.631,12.71763045]
[1771810650198,3.23642034,78.659,78.624,12.71870401]
[1771810650390,3.23642034,78.657,78.62,15.69073516]
[1771810650597,20.75236186,78.65,78.62,15.69073516]
[1771810650791,20.75236186,78.65,78.549,50.92358287]
[1771810650792,3.23642034,78.629,78.58,0.2]
[1771810650985,3.69383402,78.637,78.58,12.92586814]
[1771810650986,3.23642034,78.609,78.58,12.92586814]
[1771810651487,20.75236186,78.62,78.583,2.9713653]
[1771810651694,3.23642034,78.629,78.591,2.9713653]
[1771810652502,20.75236186,78.63,78.593,2.9713653]
[1771810652899,3.23642034,78.635,78.593,2.9713653]
[1771810653202,76.20886156,78.732,78.592,44.53379478]
[1771810653203,20.75236186,78.66,78.621,2.9713653]
[1771810653587,20.75236186,78.67,78.63,20.75236186]
[1771810653788,44.47907556,78.689,78.65,20.75236186]
[1771810654102,12.70825655,78.689,78.651,2.9713653]
[1771810654397,12.70664176,78.699,78.66,23.72372716]
[1771810654599,20.75236186,78.69,78.65,20.75236186]
[1771810654782,20.75236186,78.69,78.645,2.9713653]
[1771810654783,20.75236186,78.67,78.634,2.9713653]
[1771810655199,23.9887822,78.67,78.634,2.9713653]
[1771810655497,3.23642034,78.669,78.634,2.9713653]
[1771810656500,44.49077133,78.668,78.626,12.71832846]
[1771810656705,20.75236186,78.66,78.623,2.9713653]
[1771810656889,20.75236186,78.66,78.624,12.71876271]
[1771810657290,20.75236186,78.66,78.624,15.69012801]
[1771810657589,20.75236186,78.66,78.625,2.9713653]
[1771810657792,44.49077133,78.668,78.625,2.9713653]
[1771810658786,44.49077133,78.668,78.63,20.75236186]
[1771810659112,63.5332088,78.699,78.626,12.71843919]
[1771810659113,20.75236186,78.7,78.661,2.96491675]
[1771810659287,20.75236186,78.7,78.626,44.51453717]
[1771810659288,12.70382674,78.717,78.671,2.96491675]
[1771810659493,12.70382674,78.717,78.681,2.96491675]
[1771810659689,3.07804211,78.745,78.681,2.96491675]
[1771810659894,50.76807336,78.79,78.691,2.96491675]
[1771810659895,20.75236186,78.73,78.691,2.96491675]
[1771810660098,20.75236186,78.71,78.655,2.96491675]
[1771810660411,20.75236186,78.71,78.671,2.96491675]
[1771810660595,20.75236186,78.71,78.631,5.36086188]
[1771810660596,23.83040397,78.72,78.681,2.96491675]
[1771810660790,3.07804211,78.709,78.67,2.96491675]
[1771810660995,3.07804211,78.709,78.655,2.96491675]
[1771810660996,23.83040397,78.7,78.655,2.96491675]
[1771810661395,44.46759581,78.709,78.66,2.96491675]
[1771810661396,20.75236186,78.69,78.66,2.96491675]
[1771810661709,3.07804211,78.698,78.661,2.96491675]
[1771810661899,20.75236186,78.7,78.661,2.96491675]
[1771810662790,12.70825655,78.689,78.653,12.7140494]
[1771810662995,12.70825655,78.689,78.654,2.96491675]
[1771810663313,12.70825655,78.689,78.638,3.69383402]
[1771810663314,20.75236186,78.67,78.632,2.96491675]
[1771810663541,3.07804211,78.679,78.632,2.96491675]
[1771810663542,20.75236186,78.66,78.632,15.68226829]
[1771810663917,3.07804211,78.669,78.632,15.68226829]
[1771810664235,20.75236186,78.68,78.641,2.96491675]
[1771810664536,20.75236186,78.67,78.641,2.96491675]
[1771810664719,3.07804211,78.679,78.641,2.96491675]
[1771810665318,20.75236186,78.67,78.632,12.71735154]
[1771810665634,44.48511655,78.678,78.633,2.96491675]
[1771810665837,20.75236186,78.67,78.633,2.96491675]
[1771810666215,20.75236186,78.67,78.608,3.69383402]
[1771810666216,20.75236186,78.66,78.622,2.96491675]
[1771810666411,20.75236186,78.65,78.622,2.96491675]
[1771810666636,20.75236186,78.65,78.613,15.6853306]
[1771810666840,20.75236186,78.65,78.614,2.96491675]
[1771810667136,3.07804211,78.659,78.614,2.96491675]
[1771810667512,3.07804211,78.679,78.621,2.96491675]
[1771810667732,44.46364143,78.716,78.67,20.75236186]
[1771810667919,3.07804211,78.746,78.691,2.96491675]
[1771810668119,3.07804211,78.763,78.711,2.96491675]
[1771810668341,3.07804211,78.763,78.68,20.75236186]
[1771810668342,0.2,78.8,78.731,2.96491675]
[1771810668343,1e-08,78.74,78.731,2.96491675]
[1771810668538,20.75236186,78.78,78.732,2.96491675]
[1771810668833,20.75236186,78.75,78.711,2.96491675]
[1771810669435,15.77839009,78.738,78.7,12.7064803]
[1771810670135,20.75236186,78.73,78.7,12.7064803]
[1771810670439,15.77839009,78.738,78.7,12.7064803]
[1771810670832,20.75236186,78.73,78.694,12.70733498]
[1771810671138,3.07804211,78.729,78.689,12.70819708]
[1771810671338,20.75236186,78.7,78.662,2.96491675]
[1771810671637,20.75236186,78.71,78.671,2.96491675]
[1771810672139,20.75236186,78.7,78.664,2.96491675]
[1771810672348,20.75236186,78.69,78.658,12.71311709]
[1771810672523,20.75236186,78.69,78.652,2.96491675]
[1771810672918,20.75236186,78.67,78.638,2.96491675]
[1771810673132,20.75236186,78.68,78.641,2.96491675]
[1771810673340,20.75236186,78.69,78.641,2.96491675]
[1771810673515,12.70825655,78.689,78.643,2.96491675]
[1771810673720,12.70825655,78.689,78.651,2.96491675]
[1771810673935,12.70825655,78.689,78.661,2.96491675]
[1771810674438,12.70628674,78.702,78.661,2.96491675]
[1771810674751,12.70628674,78.702,78.671,2.96491675]
[1771810675124,12.70628674,78.702,78.66,20.75236186]
[1771810675325,20.75236186,78.7,78.661,2.96491675]
[1771810675724,12.70664176,78.699,78.663,2.96491675]
[1771810676041,3.69383402,78.728,78.662,12.71261854]
[1771810676042,23.83040397,78.73,78.681,2.96491675]
[1771810676435,50.77049786,78.786,78.68,20.75236186]
[1771810676436,12.69836479,78.751,78.711,2.96491675]
[1771810676621,50.76030114,78.802,78.721,2.96491675]
[1771810676622,12.69696161,78.759,78.721,2.96491675]
[1771810677142,12.69625275,78.764,78.721,2.96491675]
[1771810677358,12.69625275,78.764,78.731,2.96491675]
[1771810677643,12.69625275,78.764,78.688,3.69383402]
[1771810677644,12.6987352,78.748,78.709,2.96491675]
[1771810677832,20.6785142,78.74,78.709,2.96491675]
[1771810678021,23.75655631,78.74,78.702,12.70602292]
[1771810678345,20.6785142,78.72,78.681,2.96491675]
[1771810678552,20.6785142,78.71,78.681,2.96491675]
[1771810678845,23.75655631,78.72,78.681,2.96491675]
[1771810679228,3.07804211,78.744,78.681,2.96491675]
[1771810679435,20.6785142,78.72,78.681,2.96491675]
[1771810679657,12.7034134,78.719,78.681,2.96491675]
[1771810679830,12.7034134,78.719,78.68,33.38809461]
[1771810679831,12.7034134,78.719,78.682,15.6743039]
[1771810680155,12.70228387,78.726,78.683,2.96491675]
[1771810680361,12.70228387,78.726,78.691,2.96491675]
[1771810680544,20.6785142,78.73,78.691,2.96491675]
[1771810681021,12.70064873,78.737,78.701,2.96491675]
[1771810681230,12.69903039,78.747,78.71,2.96491675]
[1771810681427,20.6785142,78.74,78.71,2.96491675]
[1771810681628,20.6785142,78.75,78.712,2.96491675]
[1771810681847,3.07804211,78.749,78.712,2.96491675]
[1771810682054,3.07804211,78.749,78.711,12.70470455]
[1771810682432,3.07804211,78.749,78.712,2.96491675]
[1771810682635,20.6785142,78.77,78.721,2.96491675]
[1771810682932,20.6785142,78.77,78.711,44.46646593]
[1771810682933,20.6785142,78.78,78.741,2.96491675]
[1771810683130,50.73237041,78.846,78.711,44.46646593]
[1771810683131,3.07804211,78.76,78.712,2.96491675]
[1771810683331,20.6785142,78.75,78.712,2.96491675]
[1771810683746,20.6785142,78.73,78.7,2.96491675]
[1771810683931,20.6785142,78.73,78.689,2.96491675]
[1771810684246,44.45065342,78.739,78.691,2.96491675]
[1771810684247,47.52869553,78.739,78.691,2.96491675]
[1771810684630,47.52869553,78.739,78.701,2.96491675]
[1771810684830,20.6785142,78.73,78.701,2.96491675]
[1771810685032,47.52869553,78.739,78.701,2.96491675]
[1771810685232,3.07804211,78.738,78.701,2.96491675]
[1771810685435,20.6785142,78.74,78.701,2.96491675]
[1771810685745,20.6785142,78.74,78.7,20.6785142]
[1771810685746,12.69534969,78.769,78.731,2.96491675]
[1771810685935,12.69373817,78.779,78.731,2.96491675]
[1771810686133,12.69228816,78.788,78.741,2.96491675]
[1771810686337,3.07804211,78.805,78.761,2.96491675]
[1771810686338,12.69051637,78.799,78.761,2.96491675]
[1771810686535,44.41680731,78.799,78.761,2.96491675]
[1771810686744,44.41680731,78.799,78.716,0.28432314]
[1771810686745,3.07804211,78.789,78.716,0.28432314]
[1771810686938,3.07804211,78.789,78.75,20.6785142]
[1771810687137,3.07804211,78.789,78.716,0.28432314]
[1771810687435,44.41680731,78.799,78.716,0.28432314]